fUST/lending_fUST_20250826
["ID","MTS","AMOUNT","RATE_DAILY","PERIOD"]
[381372430,1756158653468,-480.0,0.00041369,30]
[381372431,1756158653477,-151.0,0.00041369,120]
[381372432,1756158653486,-222.786094,0.00041369,120]
[381372433,1756158653496,-1053.81,0.00041369,30]
[381372434,1756158653506,-1966.99,0.00041369,30]
[381372435,1756158653515,-151.0,0.00041369,120]
[381372436,1756158653525,-480.0,0.00041369,30]
[381372437,1756158653534,-480.0,0.00041369,30]
[381372438,1756158653544,-480.0,0.00041369,30]
[381372439,1756158653553,-480.0,0.00041369,30]
[381372440,1756158653563,-12295.8,0.00041369,30]
[381372441,1756158653572,-480.0,0.00041369,30]
[381372442,1756158653581,-480.0,0.00041369,30]
[381372443,1756158653591,-480.0,0.00041369,30]
[381372444,1756158653600,-480.0,0.00041369,30]
[381372445,1756158653609,-1354.9,0.00041369,30]
[381372446,1756158653618,-775.09,0.00041369,30]
[381372447,1756158653628,-151.0,0.00041369,120]
[381372448,1756158653637,-480.0,0.00041369,30]
[381372449,1756158653647,-1367.23,0.00041369,30]
[381372450,1756158653657,-14622.32,0.00041369,30]
[381372451,1756158653666,-761.08,0.00041369,30]
[381372452,1756158653675,-1534.83,0.00041369,30]
[381372453,1756158653684,-480.0,0.00041369,30]
[381372454,1756158653693,-480.0,0.00041369,30]
[381372455,1756158653703,-563.47,0.00041369,30]
[381372456,1756158653712,-480.0,0.00041369,30]
[381372457,1756158653721,-819.05,0.00041369,30]
[381372458,1756158653730,-480.0,0.00041369,30]
[381372459,1756158653739,-480.0,0.00041369,30]
[381372460,1756158653749,-554.04,0.00041369,30]
[381372461,1756158653758,-519.03,0.00041369,30]
[381372462,1756158653768,-4386.11,0.00041369,30]
[381372463,1756158653777,-480.0,0.00041369,30]
[381372464,1756158653786,-480.0,0.00041369,30]
[381372465,1756158653795,-151.000001,0.00041369,120]
[381372466,1756158653804,-480.0,0.00041369,30]
[381372467,1756158653813,-2484.69,0.00041369,30]
[381372468,1756158653823,-739.77,0.00041369,30]
[381372469,1756158653832,-480.0,0.00041369,30]
[381372470,1756158653841,-480.0,0.00041369,30]
[381372471,1756158653851,-500.0,0.00041369,120]
[381372472,1756158653859,-480.0,0.00041369,30]
[381372473,1756158653869,-151.0,0.00041369,120]
[381372474,1756158653879,-596.43,0.00041369,30]
[381372475,1756158653888,-480.0,0.00041369,30]
[381372476,1756158653897,-480.0,0.00041369,30]
[381372477,1756158653907,-480.0,0.00041369,30]
[381372478,1756158653916,-480.0,0.00041369,30]
[381372479,1756158653925,-480.0,0.00041369,30]
[381372480,1756158653934,-917.04,0.00041369,30]
[381372481,1756158653943,-1173.34,0.00041369,30]
[381372482,1756158653953,-778.1,0.00041369,30]
[381372483,1756158653963,-722.45,0.00041369,30]
[381372484,1756158653972,-292.29242615,0.00041369,30]
[381372485,1756158653981,-1558.37,0.00041369,30]
[381372486,1756158653991,-480.0,0.00041369,30]
[381372487,1756158654000,-480.0,0.00041369,30]
[381372488,1756158654010,-480.0,0.00041369,30]
[381372489,1756158654019,-1560.82,0.00041369,30]
[381372490,1756158654028,-1669.74,0.00041369,30]
[381372491,1756158654038,-480.0,0.00041369,30]
[381372492,1756158654048,-480.0,0.00041369,30]
[381372493,1756158654057,-516.88,0.00041369,30]
[381372494,1756158654067,-2058.07,0.00041369,30]
[381372495,1756158654077,-160.922123,0.00041369,120]
[381372496,1756158654086,-1000.0,0.00041369,30]
[381372497,1756158654095,-160.922123,0.00041369,120]
[381372498,1756158654105,-480.0,0.00041369,30]
[381372499,1756158654115,-480.0,0.00041369,30]
[381372500,1756158654124,-151.300686,0.00041369,120]
[381372501,1756158654134,-160.922123,0.00041369,120]
[381372502,1756158654143,-1026.34,0.00041369,30]
[381372503,1756158654153,-2471.19,0.00041369,30]
[381372504,1756158654162,-160.922123,0.00041369,120]
[381372505,1756158654171,-480.0,0.00041369,30]
[381372506,1756158654181,-1753.06,0.00041369,30]
[381372507,1756158654190,-200.0,0.00041369,120]
[381372508,1756158654199,-200.0,0.00041369,120]
[381372509,1756158654209,-1863.65,0.00041369,30]
[381372510,1756158654218,-480.0,0.00041369,30]
[381372511,1756158654227,-763.79,0.00041369,30]
[381372512,1756158654237,-200.0,0.00041369,120]
[381372513,1756158654247,-200.0,0.00041369,120]
[381372514,1756158654256,-1034.09,0.00041369,30]
[381372515,1756158654266,-480.0,0.00041369,30]
[381372516,1756158654275,-480.0,0.00041369,30]
[381372517,1756158654284,-1160.87,0.00041369,30]
[381372518,1756158654294,-480.0,0.00041369,30]
[381372519,1756158654303,-2322.9,0.00041369,30]
[381372520,1756158654313,-3198.19,0.00041369,30]
[381372521,1756158654323,-480.0,0.00041369,30]
[381372522,1756158654333,-1299.51,0.00041369,30]
[381372523,1756158654342,-480.0,0.00041369,30]
[381372524,1756158654351,-480.0,0.00041369,30]
[381372525,1756158654361,-3307.04,0.00041369,30]
[381372526,1756158654372,-480.0,0.00041369,30]
[381372527,1756158654384,-480.0,0.00041369,30]
[381372528,1756158654394,-920.04,0.00041369,30]
[381372529,1756158654403,-480.0,0.00041369,30]
[381372530,1756158654413,-654.01,0.00041369,30]
[381372531,1756158654422,-1406.47,0.00041369,30]
[381372532,1756158654431,-480.0,0.00041369,30]
[381372533,1756158654442,-850.83,0.00041369,30]
[381372534,1756158654454,-480.0,0.00041369,30]
[381372535,1756158654464,-1061.93,0.00041369,30]
[381372536,1756158654474,-480.0,0.00041369,30]
[381372537,1756158654483,-915.83,0.00041369,30]
[381372538,1756158654493,-480.0,0.00041369,30]
[381372539,1756158654502,-480.0,0.00041369,30]
[381372540,1756158654511,-984.32,0.00041369,30]
[381372541,1756158654521,-480.0,0.00041369,30]
[381372542,1756158654531,-2213.51,0.00041369,30]
[381372543,1756158654540,-2006.48,0.00041369,30]
[381372544,1756158654550,-304.31903472,0.00041369,30]
[381372545,1756158654559,-2942.4,0.00041369,30]
[381372546,1756158654568,-151.0,0.00041369,120]
[381372547,1756158654577,-480.0,0.00041369,30]
[381372548,1756158654587,-936.74,0.00041369,30]
[381372549,1756158654596,-582.45,0.00041369,30]
[381372550,1756158654605,-480.0,0.00041369,30]
[381372551,1756158654615,-480.0,0.00041369,30]
[381372552,1756158654624,-480.0,0.00041369,30]
[381372553,1756158654634,-1886.13,0.00041369,30]
[381372554,1756158654643,-480.0,0.00041369,30]
[381372555,1756158654653,-728.07,0.00041369,30]
[381372556,1756158654662,-1173.5,0.00041369,30]
[381372557,1756158654672,-305.556552,0.00041369,120]
[381372558,1756158654681,-2884.77,0.00041369,30]
[381372559,1756158654690,-568.18,0.00041369,30]
[381372560,1756158654699,-1073.1,0.00041369,30]
[381372561,1756158654708,-480.0,0.00041369,30]
[381372562,1756158654718,-333.70227421,0.00041369,30]
[381372563,1756158654727,-305.556552,0.00041369,120]
[381372564,1756158654736,-480.0,0.00041369,30]
[381372565,1756158654746,-771.69,0.00041369,30]
[381372566,1756158654755,-480.0,0.00041369,30]
[381372567,1756158654765,-629.7,0.00041369,30]
[381372568,1756158654774,-305.556552,0.00041369,120]
[381372569,1756158654783,-480.0,0.00041369,30]
[381372570,1756158654792,-305.556552,0.00041369,120]
[381372571,1756158654801,-480.0,0.00041369,30]
[381372572,1756158654812,-480.0,0.00041369,30]
[381372573,1756158654821,-480.0,0.00041369,30]
[381372574,1756158654830,-480.0,0.00041369,30]
[381372575,1756158654840,-1061.0,0.00041369,30]
[381372576,1756158654850,-151.0,0.00041369,120]
[381372577,1756158654859,-151.0,0.00041369,120]
[381372578,1756158654868,-1624.66,0.00041369,30]
[381372579,1756158654878,-555.22,0.00041369,30]
[381372580,1756158654888,-151.0,0.00041369,120]
[381372581,1756158654897,-882.87,0.00041369,30]
[381372582,1756158654906,-163.879448,0.00041369,120]
[381372583,1756158654916,-4190.75,0.00041369,30]
[381372584,1756158654926,-630.03,0.00041369,30]
[381372585,1756158654935,-782.81,0.00041369,30]
[381372586,1756158654946,-542.53177248,0.00041369,30]
[381372587,1756158654955,-979.52,0.00041369,30]
[381372588,1756158654965,-151.0,0.00041369,120]
[381372589,1756158654975,-959.94,0.00041369,30]
[381372590,1756158654986,-1103.02,0.00041369,30]
[381372591,1756158654995,-151.0,0.00041369,120]
[381372592,1756158655005,-3191.17,0.00041369,30]
[381372593,1756158655016,-151.0,0.00041369,120]
[381372594,1756158655026,-370.81611348,0.00041369,30]
[381372595,1756158655035,-151.0,0.00041369,120]
[381372596,1756158655044,-1006.51,0.00041369,30]
[381372597,1756158655054,-480.0,0.00041369,30]
[381372598,1756158655063,-574.18,0.00041369,30]
[381372599,1756158655073,-1371.42,0.00041369,30]
[381372600,1756158655082,-1044.07,0.00041369,30]
[381372601,1756158655091,-3250.09,0.00041369,30]
[381372602,1756158655100,-11561.87,0.00041369,30]
[381372603,1756158655110,-1029.76,0.00041369,30]
[381372604,1756158655119,-480.0,0.00041369,30]
[381372605,1756158655128,-1032.67,0.00041369,30]
[381372606,1756158655138,-480.0,0.00041369,30]
[381372607,1756158655147,-404.25251781,0.00041369,30]
[381372608,1756158655156,-606.5,0.00041369,30]
[381372609,1756158655166,-1756.92,0.00041369,30]
[381372610,1756158655175,-727.15,0.00041369,30]
[381372611,1756158655184,-2095.15,0.00041369,30]
[381372612,1756158655193,-1008.84,0.00041369,30]
[381372613,1756158655202,-480.0,0.00041369,30]
[381372614,1756158655212,-1096.36,0.00041369,30]
[381372615,1756158655221,-480.0,0.00041369,30]
[381372616,1756158655231,-482.5,0.00041369,30]
[381372617,1756158655240,-480.0,0.00041369,30]
[381372618,1756158655250,-684.13,0.00041369,30]
[381372619,1756158655259,-480.0,0.00041369,30]
[381372620,1756158655268,-727.26,0.00041369,30]
[381372621,1756158655277,-480.0,0.00041369,30]
[381372622,1756158655287,-480.0,0.00041369,30]
[381372623,1756158655296,-480.0,0.00041369,30]
[381372624,1756158655305,-932.53,0.00041369,30]
[381372625,1756158655314,-1390.27,0.00041369,30]
[381372626,1756158655324,-928.79,0.00041369,30]
[381372627,1756158655333,-587.83,0.00041369,30]
[381372628,1756158655342,-15909.95,0.00041369,30]
[381372629,1756158655351,-480.0,0.00041369,30]
[381372630,1756158655360,-1521.3,0.00041369,30]
[381372631,1756158655370,-480.0,0.00041369,30]
[381372632,1756158655383,-151.0,0.00041369,120]
[381372633,1756158655392,-1063.0,0.00041369,30]
[381372634,1756158655401,-721.15,0.00041369,30]
[381372635,1756158655411,-151.496177,0.00041369,120]
[381372636,1756158655421,-480.0,0.00041369,30]
[381372637,1756158655430,-3621.67,0.00041369,30]
[381372638,1756158655439,-480.0,0.00041369,30]
[381372639,1756158655449,-151.0,0.00041369,120]
[381372640,1756158655458,-480.0,0.00041369,30]
[381372641,1756158655467,-9132.00404549,0.00041369,30]
[381372643,1756158728173,236.0,0.0003169,7]
[381372644,1756158755978,202.96467486,0.000199,2]
[381372650,1756158918150,1000.0,0.00031,7]
[381372651,1756158943649,1621.33108,0.000316,7]
[381372653,1756159053668,233.42301139,0.000199,2]
[381372654,1756159203551,500.0,0.00025205,2]
[381372655,1756159204039,500.0,0.00025205,2]
[381372656,1756159204448,376.00613441,0.00025205,2]
[381372657,1756159230678,1000.0,0.00031,7]
[381372660,1756159410909,166.957647,0.00013699,2]
[381372663,1756159540106,-160.0,0.00033263,2]
[381372664,1756159540126,-217.12848614,0.00033263,2]
[381372665,1756159540146,-196.0,0.00036,30]
[381372666,1756159540165,-284.5923998,0.00037509,2]
[381372667,1756159540186,-164.0,0.00038,30]
[381372668,1756159540206,-111.16003106,0.00038333,5]
[381372670,1756159542937,1000.0,0.00031,7]
[381372671,1756159649120,-216.04034502,0.00033262,2]
[381372672,1756159649143,-165.31993191,0.000359,30]
[381372674,1756159753085,-301.97206666,0.00035,7]
[381372683,1756159832761,-657.37500001,0.00034999,3]
[381372805,1756159840632,-495.62499999,0.00034999,3]
[381372807,1756159840642,-198.49793334,0.00035,7]
[381372809,1756159840652,-500.0,0.00035,7]
[381372811,1756159840661,-500.0,0.00035,7]
[381372813,1756159840671,-500.0,0.00035,10]
[381372815,1756159840680,-500.0,0.00035,10]
[381372817,1756159840694,-500.0,0.00035,7]
[381372819,1756159840703,-199.0,0.000358,30]
[381372821,1756159840712,-33.68006809,0.000359,30]
[381372823,1756159840725,-216.04034502,0.0003833,2]
[381372825,1756159840734,-973.0,0.00038334,2]
[381372827,1756159840743,-2155.0,0.00038334,2]
[381372829,1756159840753,-637.0,0.00038334,2]
[381372831,1756159840766,-600.0,0.00038355,7]
[381372833,1756159840775,-383.87288031,0.00038355,2]
[381372835,1756159840785,-199.0,0.000386,30]
[381372837,1756159840795,-199.0,0.000387,30]
[381372838,1756159840804,-199.0,0.000388,30]
[381372839,1756159840813,-500.0,0.000388,30]
[381372840,1756159840823,-1000.0,0.000388,60]
[381372842,1756159840832,-199.0,0.000389,30]
[381372843,1756159840842,-844.86965257,0.0003894,2]
[381372845,1756159840851,-232.4766599,0.00038943,2]
[381372847,1756159840860,-160.0,0.00038943,2]
[381372848,1756159840869,-1233.8,0.00039,30]
[381372849,1756159840878,-182.157,0.00039,53]
[381372850,1756159840888,-500.0,0.00039073,31]
[381372851,1756159840897,-600.0,0.00039177,7]
[381372852,1756159840907,-500.0,0.00039347,32]
[381372853,1756159840916,-500.0,0.00039621,33]
[381372854,1756159840926,-1000.0,0.000398,30]
[381372855,1756159840935,-500.0,0.00039895,34]
[381372856,1756159840944,-600.0,0.00039999,7]
[381372857,1756159840953,-500.0,0.00040169,35]
[381372858,1756159840963,-1000.0,0.000402,80]
[381372859,1756159840973,-500.0,0.0004036,30]
[381372860,1756159840982,-500.0,0.0004036,30]
[381372861,1756159840991,-500.0,0.0004036,30]
[381372862,1756159841001,-500.0,0.0004036,30]
[381372863,1756159841010,-500.0,0.0004036,30]
[381372864,1756159841019,-500.0,0.00040443,36]
[381372882,1756159841244,-199.0,0.00040484,120]
[381372884,1756159841254,-199.0,0.00040584,120]
[381372886,1756159841267,-500.0,0.00040599,14]
[381372888,1756159841276,-151.669555,0.00040634,20]
[381372890,1756159841285,-642.1897587,0.00040674,2]
[381372892,1756159841295,-500.0,0.00040674,31]
[381372894,1756159841304,-500.0,0.00040674,31]
[381372896,1756159841312,-291.14315118,0.00040674,31]
[381372898,1756159841321,-160.0,0.00040675,3]
[381372899,1756159841331,-52612.7073128,0.00040675,3]
[381372901,1756159841341,-320.57,0.00040675,10]
[381372903,1756159841351,-500.0,0.00040684,31]
[381372905,1756159841361,-642.02074527,0.00040684,31]
[381372907,1756159841370,-500.0,0.00040684,31]
[381372909,1756159841379,-199.0,0.00040684,120]
[381372911,1756159841388,-1282.45,0.00040684,120]
[381372913,1756159841398,-21882.49322935,0.00040685,2]
[381373102,1756159844311,-199.0,0.000349,10]
[381373103,1756159844321,-267.14,0.00040675,10]
[381373104,1756159844331,-39585.3431624,0.00040685,2]
[381373107,1756159844497,-125.87565745,0.00040685,2]
[381373123,1756159906249,-286.3598643,0.0003814,30]
[381373124,1756159975596,30000.0,0.00031783,20]
[381373125,1756160001357,30000.0,0.00031783,20]
[381373126,1756160002027,-199.0,0.0003804,30]
[381373127,1756160005357,-500.0,0.00038355,7]
[381373132,1756160113915,-209.0,0.00031787,60]
[381373133,1756160138180,-291.0,0.00038355,7]
[381373134,1756160140491,-209.0,0.00038355,7]
[381373138,1756160355890,166.957647,0.00013699,2]
[381373144,1756160620899,417.15472785,0.00027,3]
[381373146,1756160778293,1575.17,0.00031,2]
[381373147,1756160827313,1022.16445568,0.00031,2]
[381373148,1756160831189,-500.0,0.00039177,7]
[381373149,1756160831212,-151.669555,0.00039584,20]
[381373150,1756160831232,-160.0,0.00039714,3]
[381373151,1756160831252,-973.0,0.00039882,2]
[381373152,1756160831273,-637.0,0.00039882,2]
[381373153,1756160831294,-361.14268519,0.00039882,2]
[381373154,1756160851897,90000.0,0.00031785,20]
[381373155,1756160872934,6985.52081647,0.00018,2]
[381373156,1756160872961,10000.01,0.00018,2]
[381373157,1756160872988,10000.01,0.00018,2]
[381373158,1756160873020,10000.01,0.00018,2]
[381373159,1756160873046,10000.01,0.00018,2]
[381373160,1756160873074,10000.01,0.00018,2]
[381373161,1756160873100,10000.01,0.00018,2]
[381373162,1756160873343,5360.65677239,0.00018,2]
[381373163,1756160874047,-401.27,0.00031775,10]
[381373164,1756160876397,-379.57,0.00031775,10]
[381373165,1756160876420,-372.68,0.000318,7]
[381373166,1756160881558,-650.7,0.00031775,10]
[381373167,1756160883085,2756.09590356,0.00024774,2]
[381373168,1756160905669,-451.87,0.00031774,10]
[381373171,1756160912541,-500.0,0.00031784,2]
[381373172,1756160914832,-407.22699692,0.00031784,2]
[381373173,1756160915882,-242.18752477,0.00031784,2]
[381373174,1756160919898,1825.94011387,0.00024,60]
[381373175,1756160920193,57.31721018,0.0002,2]
[381373176,1756160920216,307.59930926,0.0002,2]
[381373177,1756160920441,-406.92890959,0.00031784,2]
[381373178,1756160920675,9692.41069074,0.0002,2]
[381373179,1756160920700,10000.01,0.0002,2]
[381373180,1756160920722,10000.01,0.0002,2]
[381373181,1756160920744,7954.37216535,0.0002,2]
[381373182,1756160921839,2045.63783465,0.0002,2]
[381373183,1756160921864,1376.94544818,0.0002,2]
[381373184,1756160924338,-0.29808733,0.00031784,2]
[381373185,1756160924362,-500.0,0.00031784,2]
[381373186,1756160924385,-591.73043426,0.00031784,2]
[381373187,1756160924409,-2165.42450093,0.00031785,60]
[381373189,1756160926548,-634.65658828,0.00031785,60]
[381373190,1756160929190,-153.8462533,0.00031785,60]
[381373191,1756160929354,8623.06455182,0.0002465,2]
[381373192,1756160929379,1584.36239928,0.0002465,2]
[381373193,1756160929502,505.19572539,0.0002465,2]
[381373196,1756160931984,-404.8437467,0.00031785,60]
[381373197,1756160934654,-466.93,0.00031774,10]
[381373198,1756160934676,-171.58,0.00031784,2]
[381373199,1756160937675,-328.42,0.00031784,2]
[381373200,1756160937698,-171.58,0.00031784,2]
[381373201,1756160939966,-328.42,0.00031784,2]
[381373202,1756160939990,-171.58,0.00031784,2]
[381373205,1756160943489,-20.68312927,0.00031784,2]
[381373206,1756160943514,-479.31687073,0.00031784,2]
[381373207,1756160945075,-20.68312927,0.00031784,2]
[381373208,1756160945108,-461.08374408,0.00031784,2]
[381373209,1756160946116,-38.91625592,0.00031784,2]
[381373210,1756160946143,-500.0,0.00031784,2]
[381373212,1756160946172,-500.0,0.00031784,2]
[381373213,1756160946197,-619.06445511,0.00031785,60]
[381373214,1756160946223,-2434.70497746,0.000318,2]
[381373215,1756160948174,-172.99193307,0.00031684,2]
[381373216,1756160948203,-42.44119358,0.00031774,10]
[381373218,1756160950470,-151.0,0.00031774,10]
[381373220,1756160953092,-500.0,0.00031784,2]
[381373221,1756160953116,-646.86904807,0.00031784,2]
[381373222,1756160953141,-500.0,0.00031784,2]
[381373223,1756160953164,-2927.10317869,0.000318,2]
[381373225,1756160956847,-5247.70184385,0.000318,2]
[381373226,1756160956871,-6174.6955611,0.000318,7]
[381373227,1756160958998,-901.9,0.000318,7]
[381373228,1756160960845,-356.87,0.00031774,10]
[381373229,1756160960868,-143.13,0.000318,7]
[381373230,1756160963239,-500.0,0.00031785,60]
[381373231,1756160965111,-4500.0,0.00031785,60]
[381373232,1756160965133,-4249.16716657,0.000318,7]
[381373233,1756160975368,-176.26,0.00031784,2]
[381373234,1756160976904,-638.51,0.00031784,2]
[381373235,1756160978471,-558.69,0.00031784,2]
[381373236,1756160981339,-2198.66931506,0.00031784,2]
[381373237,1756160984197,-500.0,0.00031784,2]
[381373238,1756160985842,-500.0,0.00031784,2]
[381373239,1756160989447,-494.64250819,0.00031784,2]
[381373240,1756160989477,-988.87427046,0.00031785,60]
[381373241,1756160993431,-297.39,0.00031774,10]
[381373242,1756160993458,-1012.0338277,0.00031785,60]
[381373243,1756160995062,-500.0,0.00031785,60]
[381373247,1756160997469,-500.0,0.00031785,60]
[381373248,1756161000382,-500.0,0.00031785,60]
[381373249,1756161001947,-500.0,0.00031785,60]
[381373250,1756161004684,-247.83,0.00031774,10]
[381373251,1756161004711,-999.09190184,0.00031785,60]
[381373252,1756161004734,-3540.29836246,0.000318,7]
[381373253,1756161006409,-309.122575,0.000318,7]
[381373254,1756161008645,-500.0,0.000318,7]
[381373255,1756161011318,-164.53,0.00031774,3]
[381373256,1756161011552,-335.47,0.000318,7]
[381373257,1756161012879,-1117.18,0.000318,7]
[381373258,1756161014531,-199.0,0.000318,7]
[381373259,1756161017271,-1483.51677865,0.000318,7]
[381373260,1756161021078,-493.62,0.00031774,3]
[381373261,1756161021127,-989.89677865,0.000318,7]
[381373262,1756161022652,-151.0,0.000318,7]
[381373263,1756161030165,162.0,0.00029618,120]
[381373318,1756161040867,-162.0,0.00031099,120]
[381373320,1756161040876,-147.20136002,0.00031684,2]
[381373374,1756161041473,-14.73575393,0.00031684,2]
[381373588,1756161044449,199.0,0.00030999,120]
[381373597,1756161046817,-836.18999999,0.00031684,2]
[381373598,1756161046961,-3349.33,0.00031684,2]
[381373621,1756161105017,1000.0,0.00031,7]
[381373622,1756161196093,309.122575,0.00030706,2]
[381373623,1756161290220,3548.5953442,0.00030724,120]
[381373625,1756161400808,165.984723,0.00013699,2]
[381373626,1756161419624,1000.0,0.00031,7]
[381373627,1756161426685,208.923086,0.00030724,2]
[381373629,1756161578724,1316.82614713,0.00030695,2]
[381373630,1756161578748,10000.01,0.00030695,2]
[381373631,1756161578772,7201.32290007,0.00030695,2]
[381373632,1756161589974,-223008.755909,0.00031785,20]
[381373633,1756161614788,-73008.755909,0.00031785,20]
[381373634,1756161651556,1309.4238277,0.00030747,2]
[381373635,1756161776580,429.16369859,0.0003082,2]
[381373636,1756161827358,416.29910945,0.0003082,2]
[381373637,1756161853124,643.80046419,0.00029,2]
[381373638,1756161853147,2513.40987351,0.00029,2]
[381373639,1756161908937,184.13304,0.00030722,2]
[381373640,1756162006132,1664.14009016,0.00030568,26]
[381373641,1756162027115,-155.55774647,0.00031579,2]
[381373642,1756162027138,-205.45044307,0.00031673,2]
[381373643,1756162161792,157.43124043,0.00031,15]
[381373667,1756162232162,-160.0,0.000316,2]
[381373668,1756162232172,-237.7875329,0.00031666,2]
[381373669,1756162232181,-10735.75913095,0.00031666,2]
[381373670,1756162232190,-160.0,0.0003167,2]
[381373672,1756162232200,-376.30788339,0.00031678,2]
[381373674,1756162232209,-160.0,0.00031678,2]
[381373676,1756162232218,-160.0,0.00031679,2]
[381373678,1756162232227,-160.0,0.00031679,2]
[381373680,1756162232238,-1600.0,0.0003168,3]
[381373682,1756162232247,-173.30378635,0.00031681,2]
[381373683,1756162232256,-286.41,0.00031756,3]
[381373684,1756162232266,-247.0,0.00031764,3]
[381373685,1756162232275,-300.0,0.00031764,3]
[381373686,1756162232284,-400.0,0.00031764,2]
[381373687,1756162232293,-1439.0,0.00031764,3]
[381373688,1756162232302,-508.36544473,0.00031765,2]
[381373689,1756162232311,-500.0,0.00031765,2]
[381373690,1756162232320,-384.5889129,0.00031765,2]
[381373691,1756162232330,-500.0,0.00031765,2]
[381373693,1756162232339,-500.0,0.00031765,2]
[381373694,1756162232349,-2533.38591163,0.00031765,2]
[381373696,1756162232361,-50000.0,0.00031766,2]
[381373697,1756162232371,-71161.91033985,0.00031766,20]
[381373698,1756162232382,-5281.52410604,0.00031766,20]
[381373699,1756162232406,-43566.51107147,0.00031766,20]
[381373753,1756162237865,-93.34637197,0.00031756,3]
[381373754,1756162237880,-765.92362803,0.00031756,3]
[381373755,1756162237891,-565.9,0.00031756,10]
[381373756,1756162237900,-500.0,0.00031765,2]
[381373757,1756162237910,-500.0,0.00031765,2]
[381373758,1756162237920,-642.1897587,0.00031765,2]
[381373759,1756162237931,-500.0,0.00031765,2]
[381373760,1756162237942,-500.0,0.00031765,2]
[381373761,1756162237953,-500.0,0.00031765,2]
[381373762,1756162237962,-291.14315118,0.00031765,2]
[381373763,1756162237973,-800760.47771475,0.00031766,20]
[381373764,1756162237983,-5978.59844974,0.00031766,7]
[381373765,1756162237994,-49847.13800476,0.00031766,2]
[381373766,1756162238004,-576.97797581,0.00031766,5]
[381373767,1756162238014,-42133.21728232,0.00031766,2]
[381373875,1756162243106,-500.0,0.00031765,2]
[381373876,1756162243115,-550.0,0.00031765,2]
[381373877,1756162243126,-7752.47120604,0.00031766,2]
[381373878,1756162243138,-31552.28108512,0.00031766,2]
[381373879,1756162243147,-500.98423419,0.00031773,5]
[381373880,1756162243157,-176.26,0.00031774,120]
[381373881,1756162243167,-217.12848614,0.00031777,2]
[381373882,1756162243177,-160.0,0.00031777,2]
[381373883,1756162243188,-844.86965257,0.00031777,2]
[381373884,1756162243197,-2198.6693152,0.00031783,2]
[381373885,1756162243208,-1020.6521397,0.00031783,2]
[381373887,1756162243218,-5300.8923366,0.00031783,2]
[381373888,1756162243227,-151.0,0.00031783,2]
[381373890,1756162243237,-151.0,0.00031783,2]
[381373891,1756162243247,-151.0,0.00031783,2]
[381373892,1756162243257,-151.0,0.00031783,2]
[381373893,1756162243267,-151.0,0.00031783,2]
[381373894,1756162243277,-151.0,0.00031783,2]
[381373895,1756162243287,-500.0,0.00031783,2]
[381373897,1756162243297,-151.0,0.00031783,2]
[381373898,1756162243307,-12686.2837614,0.0003179,2]
[381373899,1756162243317,-2700.96,0.000318,7]
[381373900,1756162243327,-335.41,0.000318,7]
[381373901,1756162243338,-9548.55,0.000318,2]